[Event "Titled Tuesday Blitz July 25 Early 2023"]
[White "Souleidis, Georgios"]
[Black "Rakitic2010"]
[WhiteFideId "4206827"]
[WhiteElo "2532"]
[BlackElo "2439"]
[Result "1-0"]
[Round "11"]
[TimeControl "180+2"]
[Date "2023.07.25"]
[WhiteClock "0:00:06"]
[BlackClock "0:00:10"]
[Board "86"]

1. e4 {[%clk 0:03:00]}  Nf6 {[%clk 0:02:58]} 2. Nc3 {[%clk 0:02:59]}  d5 {[%clk 0:02:57]} 3. exd5 {[%clk 0:03:00]}  Nxd5 {[%clk 0:02:57]} 4. Bc4 {[%clk 0:03:00]}  Be6 {[%clk 0:02:57]} 5. Qf3 {[%clk 0:02:57]}  c6 {[%clk 0:02:58]} 6. Nge2 {[%clk 0:02:54]}  Nd7 {[%clk 0:02:57]} 7. d4 {[%clk 0:02:54]}  g6 {[%clk 0:02:58]} 8. Nxd5 {[%clk 0:02:49]}  cxd5 {[%clk 0:02:50]} 9. Bxd5 {[%clk 0:02:27]}  Ne5 {[%clk 0:02:39]} 10. dxe5 {[%clk 0:02:27]}  Bxd5 {[%clk 0:02:38]} 11. Qg3 {[%clk 0:02:27]}  Bg7 {[%clk 0:02:34]} 12. O-O {[%clk 0:02:03]}  O-O {[%clk 0:02:22]} 13. Nc3 {[%clk 0:01:55]}  Bc4 {[%clk 0:02:19]} 14. Rd1 {[%clk 0:01:53]}  Qa5 {[%clk 0:02:13]} 15. Bf4 {[%clk 0:01:50]}  Rfd8 {[%clk 0:02:08]} 16. h4 {[%clk 0:01:49]}  h5 {[%clk 0:02:03]} 17. b3 {[%clk 0:01:42]}  Be6 {[%clk 0:01:57]} 18. Rxd8+ {[%clk 0:00:39]}  Rxd8 {[%clk 0:01:58]} 19. Ne4 {[%clk 0:00:39]}  Rd5 {[%clk 0:01:45]} 20. c4 {[%clk 0:00:36]}  Rxe5 {[%clk 0:01:41]} 21. b4 {[%clk 0:00:06]}  Rxe4 {[%clk 0:00:58]} 22. bxa5 {[%clk 0:00:05]}  Bxa1 {[%clk 0:00:58]} 23. f3 {[%clk 0:00:04]}  Rxc4 {[%clk 0:00:54]} 24. Bg5 {[%clk 0:00:05]}  Ra4 {[%clk 0:00:38]} 25. Qb8+ {[%clk 0:00:04]}  Kg7 {[%clk 0:00:38]} 26. Bxe7 {[%clk 0:00:04]}  Rxa5 {[%clk 0:00:32]} 27. Qf8+ {[%clk 0:00:04]}  Kh7 {[%clk 0:00:32]} 28. Bg5 {[%clk 0:00:05]}  Rxa2 {[%clk 0:00:29]} 29. Qb8 {[%clk 0:00:03]}  b6 {[%clk 0:00:27]} 30. Kh2 {[%clk 0:00:03]}  Ra5 {[%clk 0:00:25]} 31. Bf4 {[%clk 0:00:03]}  Bf6 {[%clk 0:00:24]} 32. Kg3 {[%clk 0:00:03]}  Ra4 {[%clk 0:00:22]} 33. Qb7 {[%clk 0:00:02]}  Rb4 {[%clk 0:00:17]} 34. Bd6 {[%clk 0:00:02]}  Rd4 {[%clk 0:00:16]} 35. Bf4 {[%clk 0:00:02]}  Rd5 {[%clk 0:00:16]} 36. Qxa7 {[%clk 0:00:03]}  b5 {[%clk 0:00:17]} 37. Qb7 {[%clk 0:00:03]}  Kg7 {[%clk 0:00:15]} 38. Bg5 {[%clk 0:00:03]}  Bxg5 {[%clk 0:00:15]} 39. hxg5 {[%clk 0:00:04]}  Rxg5+ {[%clk 0:00:16]} 40. Kf4 {[%clk 0:00:05]}  Rd5 {[%clk 0:00:17]} 41. Kg3 {[%clk 0:00:05]}  Rg5+ {[%clk 0:00:17]} 42. Kf2 {[%clk 0:00:06]}  Rf5 {[%clk 0:00:18]} 43. Ke3 {[%clk 0:00:06]}  Rg5 {[%clk 0:00:17]} 44. Kf2 {[%clk 0:00:06]}  h4 {[%clk 0:00:18]} 45. Qc7 {[%clk 0:00:05]}  h3 {[%clk 0:00:17]} 46. gxh3 {[%clk 0:00:05]}  Bxh3 {[%clk 0:00:17]} 47. Qb6 {[%clk 0:00:05]}  Be6 {[%clk 0:00:17]} 48. Ke3 {[%clk 0:00:05]}  Re5+ {[%clk 0:00:16]} 49. Kf2 {[%clk 0:00:06]}  Rd5 {[%clk 0:00:17]} 50. Ke3 {[%clk 0:00:05]}  Kf6 {[%clk 0:00:17]} 51. Qb8 {[%clk 0:00:04]}  g5 {[%clk 0:00:17]} 52. Qh8+ {[%clk 0:00:04]}  Ke7 {[%clk 0:00:17]} 53. Qb8 {[%clk 0:00:04]}  f5 {[%clk 0:00:16]} 54. Qc7+ {[%clk 0:00:04]}  Kf6 {[%clk 0:00:16]} 55. Qb8 {[%clk 0:00:04]}  f4+ {[%clk 0:00:16]} 56. Kf2 {[%clk 0:00:04]}  Rd2+ {[%clk 0:00:16]} 57. Ke1 {[%clk 0:00:05]}  Rd5 {[%clk 0:00:16]} 58. Kf2 {[%clk 0:00:05]}  Kf5 {[%clk 0:00:16]} 59. Qf8+ {[%clk 0:00:05]}  Ke5 {[%clk 0:00:17]} 60. Qg7+ {[%clk 0:00:05]}  Kd6 {[%clk 0:00:17]} 61. Qf8+ {[%clk 0:00:05]}  Kc6 {[%clk 0:00:18]} 62. Qe7 {[%clk 0:00:05]}  Bf5 {[%clk 0:00:15]} 63. Qf6+ {[%clk 0:00:05]}  Kc5 {[%clk 0:00:15]} 64. Qc3+ {[%clk 0:00:06]}  Kb6 {[%clk 0:00:14]} 65. Qf6+ {[%clk 0:00:06]}  Ka5 {[%clk 0:00:14]} 66. Qa1+ {[%clk 0:00:05]}  Kb4 {[%clk 0:00:15]} 67. Qb2+ {[%clk 0:00:06]}  Kc4 {[%clk 0:00:15]} 68. Qa2+ {[%clk 0:00:06]}  Kd4 {[%clk 0:00:14]} 69. Qd2+ {[%clk 0:00:07]}  Bd3 {[%clk 0:00:14]} 70. Qb4+ {[%clk 0:00:06]}  Bc4 {[%clk 0:00:15]} 71. Qb2+ {[%clk 0:00:06]}  Kd3 {[%clk 0:00:14]} 72. Ke1 {[%clk 0:00:06]}  Ke3 {[%clk 0:00:11]} 73. Qf2+ {[%clk 0:00:06]}  Kd3 {[%clk 0:00:10]} 74. Qd2# {[%clk 0:00:06]} 1-0


[Site "https://www.chess.com"]

[Event "Titled Tuesday Blitz July 25 Early 2023"]
[White "Vyatkin, Dmitry"]
[Black "Pandey Srishti"]
[WhiteFideId "4171900"]
[BlackFideId "35093290"]
[WhiteElo "2526"]
[BlackElo "2433"]
[Result "1-0"]
[Round "11"]
[TimeControl "180+2"]
[Date "2023.07.25"]
[WhiteClock "0:01:10"]
[BlackClock "0:01:15"]
[Board "87"]

1. d4 {[%clk 0:03:00]}  d5 {[%clk 0:02:59]} 2. c4 {[%clk 0:02:59]}  c6 {[%clk 0:02:57]} 3. Nf3 {[%clk 0:02:59]}  Nf6 {[%clk 0:02:57]} 4. g3 {[%clk 0:02:59]}  e6 {[%clk 0:02:55]} 5. Bg2 {[%clk 0:02:59]}  dxc4 {[%clk 0:02:52]} 6. O-O {[%clk 0:02:52]}  Be7 {[%clk 0:02:45]} 7. Ne5 {[%clk 0:02:51]}  O-O {[%clk 0:02:44]} 8. Nxc4 {[%clk 0:02:50]}  b5 {[%clk 0:02:44]} 9. Ne5 {[%clk 0:02:50]}  Bb7 {[%clk 0:02:44]} 10. Nc3 {[%clk 0:02:43]}  a6 {[%clk 0:02:41]} 11. a3 {[%clk 0:02:43]}  Nfd7 {[%clk 0:02:40]} 12. Nd3 {[%clk 0:02:32]}  Qb6 {[%clk 0:02:37]} 13. Be3 {[%clk 0:02:23]}  c5 {[%clk 0:02:08]} 14. dxc5 {[%clk 0:02:21]}  Qc7 {[%clk 0:02:06]} 15. b4 {[%clk 0:02:07]}  Bxg2 {[%clk 0:02:04]} 16. Kxg2 {[%clk 0:02:07]}  Nc6 {[%clk 0:02:05]} 17. Qc2 {[%clk 0:01:54]}  Nce5 {[%clk 0:02:04]} 18. Nxe5 {[%clk 0:01:53]}  Nxe5 {[%clk 0:02:04]} 19. Bf4 {[%clk 0:01:51]}  Rfd8 {[%clk 0:01:53]} 20. Qe4 {[%clk 0:01:48]}  Bf6 {[%clk 0:01:52]} 21. Rad1 {[%clk 0:01:45]}  g5 {[%clk 0:01:48]} 22. Bc1 {[%clk 0:01:19]}  Nc4 {[%clk 0:01:44]} 23. Qf3 {[%clk 0:01:19]}  Bg7 {[%clk 0:01:30]} 24. Bxg5 {[%clk 0:01:15]}  Rxd1 {[%clk 0:01:15]} 25. Qxa8+ {[%clk 0:01:10]} 1-0


[Site "https://www.chess.com"]

[Event "Titled Tuesday Blitz July 25 Early 2023"]
[White "Chor, Kevin"]
[Black "Willy, Stephen"]
[WhiteFideId "2090740"]
[BlackFideId "30981468"]
[WhiteElo "2519"]
[BlackElo "2422"]
[Result "1-0"]
[Round "11"]
[TimeControl "180+2"]
[Date "2023.07.25"]
[WhiteClock "0:00:06"]
[BlackClock "0:00:00"]
[Board "88"]

1. e4 {[%clk 0:03:00]}  Nc6 {[%clk 0:02:57]} 2. Nf3 {[%clk 0:03:00]}  d6 {[%clk 0:02:55]} 3. Bc4 {[%clk 0:02:47]}  Nf6 {[%clk 0:02:54]} 4. d3 {[%clk 0:02:47]}  Na5 {[%clk 0:02:44]} 5. Nbd2 {[%clk 0:02:35]}  Nxc4 {[%clk 0:02:42]} 6. Nxc4 {[%clk 0:02:36]}  d5 {[%clk 0:02:35]} 7. exd5 {[%clk 0:02:33]}  Nxd5 {[%clk 0:02:33]} 8. O-O {[%clk 0:02:32]}  g6 {[%clk 0:02:32]} 9. h3 {[%clk 0:02:22]}  Bg7 {[%clk 0:02:30]} 10. d4 {[%clk 0:02:21]}  O-O {[%clk 0:02:29]} 11. Nce5 {[%clk 0:02:20]}  Nb6 {[%clk 0:02:12]} 12. a4 {[%clk 0:02:13]}  a5 {[%clk 0:02:09]} 13. c3 {[%clk 0:02:01]}  Be6 {[%clk 0:02:05]} 14. Re1 {[%clk 0:01:53]}  Bd5 {[%clk 0:01:59]} 15. Bf4 {[%clk 0:01:50]}  e6 {[%clk 0:01:54]} 16. Qd2 {[%clk 0:01:38]}  f6 {[%clk 0:01:52]} 17. Nd3 {[%clk 0:01:23]}  Bxf3 {[%clk 0:01:52]} 18. gxf3 {[%clk 0:01:24]}  Qd5 {[%clk 0:01:50]} 19. Bxc7 {[%clk 0:01:19]}  Nc4 {[%clk 0:01:46]} 20. Qe2 {[%clk 0:01:19]}  Rae8 {[%clk 0:01:29]} 21. Bg3 {[%clk 0:01:09]}  Nd6 {[%clk 0:00:59]} 22. Nf4 {[%clk 0:01:01]}  Qf5 {[%clk 0:00:43]} 23. Nxe6 {[%clk 0:00:54]}  Nf7 {[%clk 0:00:22]} 24. Qc4 {[%clk 0:00:44]}  Qxh3 {[%clk 0:00:20]} 25. Nxf8 {[%clk 0:00:40]}  Rxf8 {[%clk 0:00:21]} 26. Re7 {[%clk 0:00:35]}  g5 {[%clk 0:00:15]} 27. Rae1 {[%clk 0:00:32]}  Qh5 {[%clk 0:00:15]} 28. Qd5 {[%clk 0:00:29]}  Qg6 {[%clk 0:00:13]} 29. Rxb7 {[%clk 0:00:24]}  h5 {[%clk 0:00:13]} 30. Ree7 {[%clk 0:00:21]}  h4 {[%clk 0:00:13]} 31. Rxf7 {[%clk 0:00:18]}  Rxf7 {[%clk 0:00:12]} 32. Qxf7+ {[%clk 0:00:18]}  Qxf7 {[%clk 0:00:12]} 33. Rxf7 {[%clk 0:00:19]}  Kxf7 {[%clk 0:00:13]} 34. Bc7 {[%clk 0:00:20]}  Ke6 {[%clk 0:00:10]} 35. Bxa5 {[%clk 0:00:20]}  Kd5 {[%clk 0:00:10]} 36. b3 {[%clk 0:00:19]}  f5 {[%clk 0:00:10]} 37. Bc7 {[%clk 0:00:19]}  g4 {[%clk 0:00:08]} 38. fxg4 {[%clk 0:00:18]}  fxg4 {[%clk 0:00:09]} 39. Be5 {[%clk 0:00:17]}  Bf8 {[%clk 0:00:08]} 40. a5 {[%clk 0:00:17]}  Kc6 {[%clk 0:00:05]} 41. b4 {[%clk 0:00:14]}  Kb5 {[%clk 0:00:05]} 42. d5 {[%clk 0:00:14]}  Be7 {[%clk 0:00:04]} 43. d6 {[%clk 0:00:14]}  Bd8 {[%clk 0:00:05]} 44. Kg2 {[%clk 0:00:10]}  Bg5 {[%clk 0:00:05]} 45. Kf1 {[%clk 0:00:06]}  Bd8 {[%clk 0:00:05]} 46. Ke2 {[%clk 0:00:06]}  Bg5 {[%clk 0:00:04]} 47. Kd3 {[%clk 0:00:06]}  Bd8 {[%clk 0:00:03]} 48. Ke4 {[%clk 0:00:06]}  Bg5 {[%clk 0:00:02]} 49. Kf5 {[%clk 0:00:06]}  g3 {[%clk 0:00:02]} 50. fxg3 {[%clk 0:00:06]}  h3 {[%clk 0:00:03]} 51. g4 {[%clk 0:00:06]}  Bd8 {[%clk 0:00:03]} 52. g5 {[%clk 0:00:06]}  Kc6 {[%clk 0:00:03]} 53. g6 {[%clk 0:00:06]}  Kd5 {[%clk 0:00:00]} 54. g7 {[%clk 0:00:06]} 1-0


[Site "https://www.chess.com"]

[Event "Titled Tuesday Blitz July 25 Early 2023"]
[White "Girinath, P.D.S."]
[Black "only_strong_moves"]
[WhiteFideId "5000572"]
[WhiteElo "2382"]
[BlackElo "2518"]
[Result "1-0"]
[Round "11"]
[TimeControl "180+2"]
[Date "2023.07.25"]
[WhiteClock "0:00:59"]
[BlackClock "0:00:59"]
[Board "91"]

1. e4 {[%clk 0:02:58]}  e5 {[%clk 0:02:57]} 2. Nf3 {[%clk 0:02:56]}  Nc6 {[%clk 0:02:56]} 3. Bc4 {[%clk 0:02:57]}  Bc5 {[%clk 0:02:55]} 4. O-O {[%clk 0:02:56]}  Nf6 {[%clk 0:02:55]} 5. d4 {[%clk 0:02:56]}  Bxd4 {[%clk 0:02:43]} 6. Nxd4 {[%clk 0:02:47]}  Nxd4 {[%clk 0:02:38]} 7. Bg5 {[%clk 0:02:43]}  h6 {[%clk 0:02:37]} 8. Bh4 {[%clk 0:02:43]}  g5 {[%clk 0:02:37]} 9. f4 {[%clk 0:02:42]}  gxf4 {[%clk 0:02:06]} 10. Rxf4 {[%clk 0:02:25]}  Ne2+ {[%clk 0:01:50]} 11. Bxe2 {[%clk 0:01:27]}  exf4 {[%clk 0:01:43]} 12. Qd4 {[%clk 0:01:24]}  O-O {[%clk 0:01:36]} 13. Bxf6 {[%clk 0:01:20]}  Qe8 {[%clk 0:01:36]} 14. e5 {[%clk 0:01:08]}  d6 {[%clk 0:01:12]} 15. Qxf4 {[%clk 0:01:05]}  Qa4 {[%clk 0:00:59]} 16. Qxa4 {[%clk 0:00:59]} 1-0


[Site "https://www.chess.com"]

[Event "Titled Tuesday Blitz July 25 Early 2023"]
[White "Bilan, Danila"]
[Black "Smiechu"]
[WhiteFideId "24161918"]
[WhiteElo "2513"]
[BlackElo "2382"]
[Result "1-0"]
[Round "11"]
[TimeControl "180+2"]
[Date "2023.07.25"]
[WhiteClock "0:00:30"]
[BlackClock "0:01:50"]
[Board "92"]

1. d4 {[%clk 0:02:58]}  Nf6 {[%clk 0:02:59]} 2. Nf3 {[%clk 0:02:58]}  c5 {[%clk 0:02:59]} 3. e3 {[%clk 0:02:55]}  g6 {[%clk 0:02:58]} 4. c3 {[%clk 0:02:54]}  Bg7 {[%clk 0:02:59]} 5. Nbd2 {[%clk 0:02:54]}  b6 {[%clk 0:03:00]} 6. Bc4 {[%clk 0:02:52]}  Bb7 {[%clk 0:03:00]} 7. O-O {[%clk 0:02:52]}  O-O {[%clk 0:03:00]} 8. Qe2 {[%clk 0:02:53]}  d6 {[%clk 0:02:57]} 9. a4 {[%clk 0:02:51]}  a6 {[%clk 0:02:56]} 10. e4 {[%clk 0:02:50]}  e5 {[%clk 0:02:56]} 11. dxe5 {[%clk 0:02:44]}  dxe5 {[%clk 0:02:56]} 12. Nxe5 {[%clk 0:02:35]}  Qe7 {[%clk 0:02:54]} 13. f4 {[%clk 0:02:13]}  Nbd7 {[%clk 0:02:53]} 14. Nxd7 {[%clk 0:01:46]}  Nxd7 {[%clk 0:02:51]} 15. e5 {[%clk 0:01:42]}  Kh8 {[%clk 0:02:49]} 16. Nf3 {[%clk 0:01:38]}  f6 {[%clk 0:02:47]} 17. e6 {[%clk 0:01:22]}  Nb8 {[%clk 0:02:44]} 18. f5 {[%clk 0:01:16]}  Nc6 {[%clk 0:02:42]} 19. fxg6 {[%clk 0:01:11]}  hxg6 {[%clk 0:02:42]} 20. Nh4 {[%clk 0:01:10]}  Ne5 {[%clk 0:02:38]} 21. Qxe5 {[%clk 0:01:07]}  fxe5 {[%clk 0:02:38]} 22. Nxg6+ {[%clk 0:01:07]}  Kh7 {[%clk 0:02:35]} 23. Nxe7 {[%clk 0:01:07]}  Rfe8 {[%clk 0:02:14]} 24. Bd3+ {[%clk 0:01:00]}  Kh8 {[%clk 0:02:08]} 25. Ng6+ {[%clk 0:00:57]}  Kg8 {[%clk 0:02:08]} 26. Bg5 {[%clk 0:00:51]}  e4 {[%clk 0:02:05]} 27. Bc4 {[%clk 0:00:48]}  Kh7 {[%clk 0:02:05]} 28. Nf4 {[%clk 0:00:41]}  Bc6 {[%clk 0:02:05]} 29. Bd5 {[%clk 0:00:34]}  Bxd5 {[%clk 0:02:02]} 30. Nxd5 {[%clk 0:00:35]}  Rxe6 {[%clk 0:02:02]} 31. Nc7 {[%clk 0:00:34]}  Rg6 {[%clk 0:01:58]} 32. Nxa8 {[%clk 0:00:32]}  Rxg5 {[%clk 0:01:59]} 33. Nxb6 {[%clk 0:00:32]}  e3 {[%clk 0:01:58]} 34. Nc4 {[%clk 0:00:30]}  e2 {[%clk 0:01:54]} 35. Rfe1 {[%clk 0:00:29]}  Rg4 {[%clk 0:01:55]} 36. Ne3 {[%clk 0:00:29]}  Re4 {[%clk 0:01:54]} 37. Rxe2 {[%clk 0:00:30]}  Bh6 {[%clk 0:01:50]} 38. Rae1 {[%clk 0:00:30]} 1-0


[Site "https://www.chess.com"]

[Event "Titled Tuesday Blitz July 25 Early 2023"]
[White "Petrovic, Aleksa"]
[Black "Rodriguez Santiago, Jaime"]
[WhiteFideId "967629"]
[BlackFideId "3100898"]
[WhiteElo "2505"]
[BlackElo "2369"]
[Result "1/2-1/2"]
[Round "11"]
[TimeControl "180+2"]
[Date "2023.07.25"]
[WhiteClock "0:00:32"]
[BlackClock "0:00:42"]
[Board "94"]

1. d4 {[%clk 0:03:00]}  Nf6 {[%clk 0:02:58]} 2. c4 {[%clk 0:03:00]}  e6 {[%clk 0:02:58]} 3. Nf3 {[%clk 0:03:00]}  d5 {[%clk 0:02:57]} 4. Nc3 {[%clk 0:02:59]}  c5 {[%clk 0:02:57]} 5. cxd5 {[%clk 0:02:59]}  Nxd5 {[%clk 0:02:56]} 6. e4 {[%clk 0:02:58]}  Nxc3 {[%clk 0:02:56]} 7. bxc3 {[%clk 0:02:59]}  cxd4 {[%clk 0:02:56]} 8. cxd4 {[%clk 0:03:00]}  Bb4+ {[%clk 0:02:57]} 9. Bd2 {[%clk 0:03:01]}  Bxd2+ {[%clk 0:02:58]} 10. Qxd2 {[%clk 0:03:01]}  O-O {[%clk 0:02:58]} 11. Bc4 {[%clk 0:03:02]}  Nd7 {[%clk 0:02:57]} 12. O-O {[%clk 0:03:01]}  b6 {[%clk 0:02:57]} 13. Rad1 {[%clk 0:02:58]}  Bb7 {[%clk 0:02:57]} 14. d5 {[%clk 0:02:46]}  Nc5 {[%clk 0:02:52]} 15. dxe6 {[%clk 0:02:44]}  fxe6 {[%clk 0:02:50]} 16. Nd4 {[%clk 0:02:33]}  Qe7 {[%clk 0:02:39]} 17. Nxe6 {[%clk 0:02:10]}  Nxe6 {[%clk 0:02:28]} 18. Qd7 {[%clk 0:02:10]}  Rae8 {[%clk 0:02:23]} 19. Bxe6+ {[%clk 0:02:08]}  Qxe6 {[%clk 0:02:06]} 20. Qxb7 {[%clk 0:02:08]}  Rf7 {[%clk 0:02:03]} 21. Qa6 {[%clk 0:01:53]}  Qxe4 {[%clk 0:01:59]} 22. h3 {[%clk 0:01:52]}  Qc2 {[%clk 0:01:49]} 23. Qb5 {[%clk 0:01:44]}  Ref8 {[%clk 0:01:45]} 24. Qd5 {[%clk 0:01:29]}  h6 {[%clk 0:01:41]} 25. Rc1 {[%clk 0:01:27]}  Qa4 {[%clk 0:01:37]} 26. Rc7 {[%clk 0:01:21]}  g6 {[%clk 0:01:19]} 27. Re1 {[%clk 0:01:12]}  Qf4 {[%clk 0:01:01]} 28. Rxf7 {[%clk 0:01:01]}  Rxf7 {[%clk 0:01:00]} 29. f3 {[%clk 0:00:39]}  Kg7 {[%clk 0:00:58]} 30. Re4 {[%clk 0:00:33]}  Qc7 {[%clk 0:00:42]} 31. Rc4 {[%clk 0:00:32]} 1/2-1/2


[Site "https://www.chess.com"]

[Event "Titled Tuesday Blitz July 25 Early 2023"]
[White "Mei, Austin"]
[Black "Slovineanu, Viacheslav"]
[WhiteFideId "30948479"]
[BlackFideId "13900510"]
[WhiteElo "2488"]
[BlackElo "2357"]
[Result "1-0"]
[Round "11"]
[TimeControl "180+2"]
[Date "2023.07.25"]
[WhiteClock "0:01:29"]
[BlackClock "0:00:06"]
[Board "95"]

1. e4 {[%clk 0:03:00]}  c6 {[%clk 0:02:59]} 2. d4 {[%clk 0:03:01]}  d5 {[%clk 0:03:00]} 3. f3 {[%clk 0:03:01]}  dxe4 {[%clk 0:02:59]} 4. fxe4 {[%clk 0:03:02]}  e5 {[%clk 0:03:00]} 5. Nf3 {[%clk 0:03:02]}  Be6 {[%clk 0:02:59]} 6. c3 {[%clk 0:02:57]}  Nd7 {[%clk 0:02:59]} 7. Bd3 {[%clk 0:02:53]}  Bd6 {[%clk 0:02:58]} 8. O-O {[%clk 0:02:53]}  Ngf6 {[%clk 0:02:59]} 9. Nbd2 {[%clk 0:02:48]}  b5 {[%clk 0:02:49]} 10. a4 {[%clk 0:02:48]}  a6 {[%clk 0:02:47]} 11. h3 {[%clk 0:02:37]}  O-O {[%clk 0:02:46]} 12. Ng5 {[%clk 0:02:34]}  Qe7 {[%clk 0:02:22]} 13. Ndf3 {[%clk 0:02:28]}  h6 {[%clk 0:02:09]} 14. Nxe6 {[%clk 0:02:28]}  fxe6 {[%clk 0:02:09]} 15. Be3 {[%clk 0:02:20]}  exd4 {[%clk 0:01:59]} 16. Nxd4 {[%clk 0:02:18]}  Ne5 {[%clk 0:01:38]} 17. axb5 {[%clk 0:02:10]}  axb5 {[%clk 0:01:35]} 18. Rxa8 {[%clk 0:02:10]}  Rxa8 {[%clk 0:01:35]} 19. Be2 {[%clk 0:02:10]}  Nxe4 {[%clk 0:00:49]} 20. Qc2 {[%clk 0:02:09]}  Nf6 {[%clk 0:00:45]} 21. Bf4 {[%clk 0:02:00]}  Rc8 {[%clk 0:00:39]} 22. Qb3 {[%clk 0:01:55]}  Nd5 {[%clk 0:00:35]} 23. Bh2 {[%clk 0:01:52]}  Nc4 {[%clk 0:00:29]} 24. Bxc4 {[%clk 0:01:50]}  bxc4 {[%clk 0:00:22]} 25. Qxc4 {[%clk 0:01:51]}  Ne3 {[%clk 0:00:19]} 26. Bxd6 {[%clk 0:01:42]}  Qxd6 {[%clk 0:00:20]} 27. Qa6 {[%clk 0:01:36]}  Nxf1 {[%clk 0:00:19]} 28. Qxc8+ {[%clk 0:01:36]}  Kh7 {[%clk 0:00:19]} 29. Kxf1 {[%clk 0:01:36]}  c5 {[%clk 0:00:17]} 30. Nf3 {[%clk 0:01:32]}  Qd1+ {[%clk 0:00:12]} 31. Kf2 {[%clk 0:01:32]}  Qc2+ {[%clk 0:00:11]} 32. Kg1 {[%clk 0:01:33]}  Qxb2 {[%clk 0:00:12]} 33. Qxc5 {[%clk 0:01:32]}  Qc1+ {[%clk 0:00:11]} 34. Kf2 {[%clk 0:01:31]}  Qf4 {[%clk 0:00:10]} 35. Qe3 {[%clk 0:01:31]}  Qc4 {[%clk 0:00:09]} 36. Ne5 {[%clk 0:01:29]}  Qa2+ {[%clk 0:00:09]} 37. Kg3 {[%clk 0:01:29]}  Qd5 {[%clk 0:00:06]} 38. Qd3+ {[%clk 0:01:29]} 1-0


[Site "https://www.chess.com"]

[Event "Titled Tuesday Blitz July 25 Early 2023"]
[White "Vemparala, Nikash"]
[Black "Heinemann, Josefine"]
[WhiteFideId "30960967"]
[BlackFideId "12900460"]
[WhiteElo "2292"]
[BlackElo "2472"]
[Result "1/2-1/2"]
[Round "11"]
[TimeControl "180+2"]
[Date "2023.07.25"]
[WhiteClock "0:00:09"]
[BlackClock "0:00:46"]
[Board "98"]

1. e4 {[%clk 0:03:00]}  c5 {[%clk 0:02:55]} 2. Nf3 {[%clk 0:03:00]}  d6 {[%clk 0:02:54]} 3. d4 {[%clk 0:02:59]}  cxd4 {[%clk 0:02:55]} 4. Nxd4 {[%clk 0:03:00]}  Nf6 {[%clk 0:02:54]} 5. Nc3 {[%clk 0:03:00]}  a6 {[%clk 0:02:53]} 6. f3 {[%clk 0:03:00]}  e5 {[%clk 0:02:53]} 7. Nb3 {[%clk 0:03:01]}  Be6 {[%clk 0:02:51]} 8. Be3 {[%clk 0:03:01]}  h5 {[%clk 0:02:50]} 9. Nd5 {[%clk 0:03:00]}  Bxd5 {[%clk 0:02:48]} 10. exd5 {[%clk 0:03:01]}  Nbd7 {[%clk 0:02:49]} 11. Qd2 {[%clk 0:03:00]}  Nb6 {[%clk 0:02:45]} 12. c4 {[%clk 0:02:57]}  Rc8 {[%clk 0:02:41]} 13. Rc1 {[%clk 0:02:55]}  g6 {[%clk 0:02:32]} 14. Be2 {[%clk 0:02:54]}  Bg7 {[%clk 0:02:32]} 15. O-O {[%clk 0:02:54]}  O-O {[%clk 0:02:32]} 16. Qb4 {[%clk 0:02:44]}  Nbxd5 {[%clk 0:02:16]} 17. cxd5 {[%clk 0:02:39]}  Nxd5 {[%clk 0:02:17]} 18. Qd2 {[%clk 0:02:39]}  Nxe3 {[%clk 0:02:17]} 19. Qxe3 {[%clk 0:02:40]}  Rxc1 {[%clk 0:02:15]} 20. Rxc1 {[%clk 0:02:39]}  d5 {[%clk 0:02:15]} 21. Qc5 {[%clk 0:02:36]}  e4 {[%clk 0:02:06]} 22. Rd1 {[%clk 0:02:30]}  exf3 {[%clk 0:02:04]} 23. Bxf3 {[%clk 0:02:30]}  Bxb2 {[%clk 0:02:02]} 24. Bxd5 {[%clk 0:02:27]}  Qh4 {[%clk 0:02:00]} 25. Qb6 {[%clk 0:02:18]}  Kg7 {[%clk 0:01:51]} 26. Nd4 {[%clk 0:01:49]}  Bxd4+ {[%clk 0:01:41]} 27. Qxd4+ {[%clk 0:01:49]}  Qxd4+ {[%clk 0:01:41]} 28. Rxd4 {[%clk 0:01:50]}  Rd8 {[%clk 0:01:42]} 29. Rd1 {[%clk 0:01:44]}  b5 {[%clk 0:01:26]} 30. Bf3 {[%clk 0:01:43]}  Rc8 {[%clk 0:01:22]} 31. Bb7 {[%clk 0:01:43]}  Rc2 {[%clk 0:01:21]} 32. Bxa6 {[%clk 0:01:43]}  Rxa2 {[%clk 0:01:21]} 33. Bxb5 {[%clk 0:01:43]}  Rb2 {[%clk 0:01:17]} 34. Bc4 {[%clk 0:01:41]}  Rc2 {[%clk 0:01:17]} 35. Bb3 {[%clk 0:01:34]}  Rb2 {[%clk 0:01:16]} 36. Bd5 {[%clk 0:01:33]}  h4 {[%clk 0:01:15]} 37. Re1 {[%clk 0:01:24]}  Rd2 {[%clk 0:01:11]} 38. Bc4 {[%clk 0:01:19]}  Rc2 {[%clk 0:01:11]} 39. Bf1 {[%clk 0:01:08]}  f5 {[%clk 0:01:09]} 40. Re2 {[%clk 0:01:07]}  Rxe2 {[%clk 0:01:03]} 41. Bxe2 {[%clk 0:01:08]}  Kf6 {[%clk 0:01:03]} 42. Kf2 {[%clk 0:01:05]}  g5 {[%clk 0:01:03]} 43. g3 {[%clk 0:00:46]}  Ke5 {[%clk 0:00:59]} 44. Kf3 {[%clk 0:00:23]}  Kf6 {[%clk 0:00:51]} 45. Bd3 {[%clk 0:00:15]}  Ke5 {[%clk 0:00:51]} 46. Bc2 {[%clk 0:00:12]}  Kf6 {[%clk 0:00:48]} 47. Bb1 {[%clk 0:00:10]}  Ke5 {[%clk 0:00:48]} 48. Bd3 {[%clk 0:00:10]}  Kf6 {[%clk 0:00:48]} 49. Bc2 {[%clk 0:00:11]}  Ke5 {[%clk 0:00:48]} 50. Kg2 {[%clk 0:00:11]}  hxg3 {[%clk 0:00:46]} 51. hxg3 {[%clk 0:00:10]}  g4 {[%clk 0:00:46]} 52. Bd1 {[%clk 0:00:08]}  f4 {[%clk 0:00:46]} 53. Bxg4 {[%clk 0:00:08]}  fxg3 {[%clk 0:00:46]} 54. Kxg3 {[%clk 0:00:09]} 1/2-1/2


[Site "https://www.chess.com"]